[Event "Late-Titled-Tuesday-Blitz-October-03-2023"]
[Site "Chess.com"]
[Date "2023.10.03"]
[Round "10"]
[White "ETTrainer"]
[Black "marik_spb"]
[Result "1-0"]
[WhiteElo "2313"]
[BlackElo "2388"]
[TimeControl "180+1"]
[EndTime "15:51:34 PDT"]
[Termination "ETTrainer won on time"]

1. d4 {[%clk 0:02:55.2]} 1... Nf6 {[%clk 0:02:56.6]} 2. Bf4 {[%clk 0:02:54.7]}
2... d5 {[%clk 0:02:55.8]} 3. e3 {[%clk 0:02:54.4]} 3... c5 {[%clk 0:02:54.9]}
4. c3 {[%clk 0:02:54.5]} 4... e6 {[%clk 0:02:50.9]} 5. Nd2 {[%clk 0:02:53.1]}
5... Nc6 {[%clk 0:02:50.9]} 6. Ngf3 {[%clk 0:02:49.3]} 6... Bd7 {[%clk
0:02:50.8]} 7. Be2 {[%clk 0:02:46.8]} 7... Be7 {[%clk 0:02:47.4]} 8. h3 {[%clk
0:02:40.1]} 8... O-O {[%clk 0:02:32.3]} 9. O-O {[%clk 0:02:38.6]} 9... Nh5
{[%clk 0:02:28.9]} 10. Bh2 {[%clk 0:02:36.6]} 10... f5 {[%clk 0:02:21.2]} 11.
Ne5 {[%clk 0:02:27.5]} 11... Nf6 {[%clk 0:02:14]} 12. Nxd7 {[%clk 0:02:20.1]}
12... Qxd7 {[%clk 0:02:13.8]} 13. Nf3 {[%clk 0:02:15.8]} 13... Ne4 {[%clk
0:02:09.7]} 14. Bb5 {[%clk 0:02:10.6]} 14... a6 {[%clk 0:02:01.7]} 15. Ne5
{[%clk 0:02:08.9]} 15... Qc8 {[%clk 0:02:02]} 16. Bxc6 {[%clk 0:02:04.6]} 16...
bxc6 {[%clk 0:02:01.8]} 17. Qa4 {[%clk 0:01:50.6]} 17... Bd6 {[%clk 0:01:16.8]}
18. dxc5 {[%clk 0:01:36]} 18... Bxe5 {[%clk 0:01:06.8]} 19. Bxe5 {[%clk
0:01:35.5]} 19... Nxc5 {[%clk 0:01:06.3]} 20. Qa3 {[%clk 0:01:32.6]} 20... Ne4
{[%clk 0:01:04.2]} 21. f3 {[%clk 0:01:31]} 21... Nd2 {[%clk 0:01:03.5]} 22. Bd6
{[%clk 0:01:11.7]} 22... Nxf1 {[%clk 0:00:31.5]} 23. Bxf8 {[%clk 0:01:10.5]}
23... Nxe3 {[%clk 0:00:31.7]} 24. Qe7 {[%clk 0:01:08.7]} 24... Qxf8 {[%clk
0:00:24.6]} 25. Qxe6+ {[%clk 0:01:08.3]} 25... Kh8 {[%clk 0:00:20.7]} 26. Qxe3
{[%clk 0:01:08.4]} 26... Re8 {[%clk 0:00:21.3]} 27. Qd4 {[%clk 0:00:56.5]} 27...
h6 {[%clk 0:00:21.2]} 28. c4 {[%clk 0:00:49.2]} 28... Qb4 {[%clk 0:00:20.1]} 29.
b3 {[%clk 0:00:46.4]} 29... Re2 {[%clk 0:00:19.9]} 30. Rd1 {[%clk 0:00:41.1]}
30... dxc4 {[%clk 0:00:12.4]} 31. bxc4 {[%clk 0:00:30.4]} 31... Rxa2 {[%clk
0:00:10.8]} 32. Qd7 {[%clk 0:00:21.9]} 32... Qc5+ {[%clk 0:00:10.2]} 33. Kh1
{[%clk 0:00:21.2]} 33... Kh7 {[%clk 0:00:08]} 34. Qd3 {[%clk 0:00:09.8]} 34...
a5 {[%clk 0:00:07.6]} 35. Re1 {[%clk 0:00:09]} 35... a4 {[%clk 0:00:07.2]} 36.
Re8 {[%clk 0:00:04.9]} 36... a3 {[%clk 0:00:06.7]} 37. Qd8 {[%clk 0:00:03.5]}
37... Ra1+ {[%clk 0:00:04.4]} 38. Kh2 {[%clk 0:00:04]} 38... Qxc4 {[%clk
0:00:03]} 39. Rh8+ {[%clk 0:00:03.1]} 39... Kg6 {[%clk 0:00:03.5]} 40. Qd6+
{[%clk 0:00:03.3]} 40... Kh5 {[%clk 0:00:02.1]} 41. g4+ {[%clk 0:00:02.6]} 41...
Kg5 {[%clk 0:00:01.1]} 42. h4+ {[%clk 0:00:01.3]} 1-0

[Event "Late-Titled-Tuesday-Blitz-October-03-2023"]
[Site "Chess.com"]
[Date "2023.10.03"]
[Round "10"]
[White "Zhigalko_Sergei"]
[Black "artin10862"]
[Result "1-0"]
[WhiteElo "2962"]
[BlackElo "2812"]
[TimeControl "180+1"]
[EndTime "15:51:36 PDT"]
[Termination "Zhigalko_Sergei won by resignation"]

1. e4 {[%clk 0:03:00.9]} 1... c5 {[%clk 0:02:58.9]} 2. Nf3 {[%clk 0:03:00.9]}
2... d6 {[%clk 0:02:59.5]} 3. d4 {[%clk 0:03:01.1]} 3... cxd4 {[%clk 0:03:00.4]}
4. Qxd4 {[%clk 0:03:02]} 4... Nc6 {[%clk 0:02:51.4]} 5. Bb5 {[%clk 0:03:02.3]}
5... a6 {[%clk 0:02:50.8]} 6. Bxc6+ {[%clk 0:03:01.8]} 6... bxc6 {[%clk
0:02:51.7]} 7. c4 {[%clk 0:03:02.3]} 7... e5 {[%clk 0:02:42.1]} 8. Qd3 {[%clk
0:03:02.2]} 8... Ne7 {[%clk 0:02:41.8]} 9. c5 {[%clk 0:02:57.8]} 9... Ng6 {[%clk
0:02:40.8]} 10. cxd6 {[%clk 0:02:54.5]} 10... Bxd6 {[%clk 0:02:40.6]} 11. O-O
{[%clk 0:02:52.4]} 11... Qe7 {[%clk 0:02:36.1]} 12. Rd1 {[%clk 0:02:48.6]} 12...
Bc5 {[%clk 0:02:31.9]} 13. Be3 {[%clk 0:02:48.6]} 13... O-O {[%clk 0:02:31.7]}
14. Bxc5 {[%clk 0:02:33.3]} 14... Qxc5 {[%clk 0:02:32.6]} 15. Qc3 {[%clk
0:02:33.9]} 15... Qb5 {[%clk 0:02:22.9]} 16. Na3 {[%clk 0:02:27.4]} 16... Qb8
{[%clk 0:02:19.2]} 17. Nc4 {[%clk 0:02:18.7]} 17... Bg4 {[%clk 0:02:16.7]} 18.
h3 {[%clk 0:02:16]} 18... Bxf3 {[%clk 0:02:12.8]} 19. Qxf3 {[%clk 0:02:15.9]}
19... Qb4 {[%clk 0:02:12]} 20. Rac1 {[%clk 0:02:12.7]} 20... Rfd8 {[%clk
0:02:10.9]} 21. a3 {[%clk 0:02:05.9]} 21... Qc5 {[%clk 0:01:56.5]} 22. Nd6
{[%clk 0:01:58.2]} 22... Qa7 {[%clk 0:01:53.3]} 23. Rxc6 {[%clk 0:01:55.5]}
23... Nf4 {[%clk 0:01:52.7]} 24. Rcc1 {[%clk 0:01:33.3]} 24... Qb6 {[%clk
0:01:34.8]} 25. Nc4 {[%clk 0:01:30.4]} 25... Qb5 {[%clk 0:01:34.9]} 26. h4
{[%clk 0:00:44.1]} 26... h6 {[%clk 0:01:14.9]} 27. g3 {[%clk 0:00:38.4]} 27...
Ne6 {[%clk 0:01:15.1]} 28. Nd6 {[%clk 0:00:37.7]} 28... Qd7 {[%clk 0:01:03.7]}
29. Nf5 {[%clk 0:00:37.8]} 29... Qa7 {[%clk 0:00:59.1]} 30. Qg4 {[%clk
0:00:32.2]} 30... g6 {[%clk 0:00:52.2]} 31. Nxh6+ {[%clk 0:00:18.5]} 31... Kh7
{[%clk 0:00:50]} 32. Nf5 {[%clk 0:00:18.7]} 32... gxf5 {[%clk 0:00:32]} 33. exf5
{[%clk 0:00:17.4]} 33... Ng7 {[%clk 0:00:28.9]} 34. f6 {[%clk 0:00:14.8]} 34...
Ne6 {[%clk 0:00:28.4]} 35. Qh5+ {[%clk 0:00:11.3]} 35... Kg8 {[%clk 0:00:27.8]}
36. Qg4+ {[%clk 0:00:10.2]} 36... Kf8 {[%clk 0:00:24]} 37. Qh5 {[%clk
0:00:10.1]} 37... Kg8 {[%clk 0:00:22.8]} 38. Qxe5 {[%clk 0:00:10.5]} 38... Qb7
{[%clk 0:00:21.1]} 39. Qf5 {[%clk 0:00:06.4]} 39... Qxb2 {[%clk 0:00:17.7]} 40.
Re1 {[%clk 0:00:04.6]} 40... Rac8 {[%clk 0:00:03.6]} 41. Rxc8 {[%clk 0:00:04]}
41... Rxc8 {[%clk 0:00:04.5]} 42. Rxe6 {[%clk 0:00:03.9]} 42... Qc1+ {[%clk
0:00:03.5]} 43. Kh2 {[%clk 0:00:04.1]} 43... fxe6 {[%clk 0:00:01.1]} 44. Qg6+
{[%clk 0:00:03.6]} 44... Kf8 {[%clk 0:00:02]} 45. Qg7+ {[%clk 0:00:04.5]} 1-0

[Event "Late-Titled-Tuesday-Blitz-October-03-2023"]
[Site "Chess.com"]
[Date "2023.10.03"]
[Round "10"]
[White "jaskol95"]
[Black "The_Princess_Moon"]
[Result "1-0"]
[WhiteElo "2594"]
[BlackElo "2284"]
[TimeControl "180+1"]
[EndTime "15:51:42 PDT"]
[Termination "jaskol95 won on time"]

1. e4 {[%clk 0:03:00.9]} 1... c5 {[%clk 0:03:00.9]} 2. Nf3 {[%clk 0:03:01.2]}
2... a6 {[%clk 0:03:00.6]} 3. b4 {[%clk 0:02:59.5]} 3... cxb4 {[%clk 0:03:00.4]}
4. d4 {[%clk 0:02:59.3]} 4... d5 {[%clk 0:03:00.5]} 5. exd5 {[%clk 0:02:58.5]}
5... Nf6 {[%clk 0:03:00]} 6. c4 {[%clk 0:02:58.7]} 6... bxc3 {[%clk 0:02:59.5]}
7. Nxc3 {[%clk 0:02:55.7]} 7... Nxd5 {[%clk 0:02:58.2]} 8. Ne4 {[%clk
0:02:52.1]} 8... e6 {[%clk 0:02:52.6]} 9. Bd3 {[%clk 0:02:52.4]} 9... Bb4+
{[%clk 0:02:51.6]} 10. Bd2 {[%clk 0:02:53]} 10... Bxd2+ {[%clk 0:02:51]} 11.
Qxd2 {[%clk 0:02:53.9]} 11... Nd7 {[%clk 0:02:48.7]} 12. Nd6+ {[%clk 0:02:53.3]}
12... Ke7 {[%clk 0:02:40.1]} 13. Ng5 {[%clk 0:02:26.6]} 13... Rf8 {[%clk
0:02:15.8]} 14. Nge4 {[%clk 0:02:26.8]} 14... h6 {[%clk 0:01:50.7]} 15. Nc4
{[%clk 0:02:07.4]} 15... b5 {[%clk 0:01:44.5]} 16. Ne3 {[%clk 0:02:07.7]} 16...
Bb7 {[%clk 0:01:39.7]} 17. O-O {[%clk 0:02:07.5]} 17... N7f6 {[%clk 0:01:38.6]}
18. Nc5 {[%clk 0:02:06.7]} 18... Rb8 {[%clk 0:01:27.9]} 19. Nf5+ {[%clk
0:01:45.2]} 19... exf5 {[%clk 0:01:20]} 20. Rfe1+ {[%clk 0:01:45.6]} 20... Kd6
{[%clk 0:01:16.3]} 21. Rac1 {[%clk 0:01:24.9]} 21... Re8 {[%clk 0:01:12.8]} 22.
Rxe8 {[%clk 0:01:10.1]} 22... Qxe8 {[%clk 0:01:09]} 23. Qc2 {[%clk 0:01:10.7]}
23... Qc6 {[%clk 0:00:26.1]} 24. Bxf5 {[%clk 0:01:10.3]} 24... Ba8 {[%clk
0:00:17.2]} 25. Qe2 {[%clk 0:00:58.7]} 25... Re8 {[%clk 0:00:16.5]} 26. Qf3
{[%clk 0:00:58.3]} 26... g5 {[%clk 0:00:13.5]} 27. Ne4+ {[%clk 0:00:51.5]} 27...
Nxe4 {[%clk 0:00:12.7]} 28. Rxc6+ {[%clk 0:00:51.2]} 28... Bxc6 {[%clk
0:00:11.6]} 29. Bxe4 {[%clk 0:00:49.6]} 29... Nc3 {[%clk 0:00:07.2]} 30. Qf6+
{[%clk 0:00:32]} 30... Re6 {[%clk 0:00:06.2]} 31. Qd8+ {[%clk 0:00:32.2]} 31...
Bd7 {[%clk 0:00:04.5]} 32. Qf8+ {[%clk 0:00:28.9]} 32... Kc7 {[%clk 0:00:04.4]}
33. Qc5+ {[%clk 0:00:28.9]} 33... Bc6 {[%clk 0:00:03.6]} 34. Qxc3 {[%clk
0:00:26.3]} 34... Rxe4 {[%clk 0:00:03]} 35. f3 {[%clk 0:00:23.3]} 35... Rf4
{[%clk 0:00:03]} 36. d5 {[%clk 0:00:22.8]} 36... Rc4 {[%clk 0:00:01.9]} 37. Qe5+
{[%clk 0:00:22.4]} 37... Kb6 {[%clk 0:00:02.1]} 38. dxc6 {[%clk 0:00:22.6]}
38... Rxc6 {[%clk 0:00:02.6]} 39. Kf2 {[%clk 0:00:19.3]} 39... f6 {[%clk
0:00:03.5]} 40. Qb8+ {[%clk 0:00:18.8]} 40... Kc5 {[%clk 0:00:03.3]} 41. Qf8+
{[%clk 0:00:19.5]} 41... Kb6 {[%clk 0:00:02.9]} 42. Qxh6 {[%clk 0:00:20.1]}
42... a5 {[%clk 0:00:03.4]} 43. Qf8 {[%clk 0:00:20.2]} 43... b4 {[%clk
0:00:03.7]} 44. Qb8+ {[%clk 0:00:20.4]} 44... Kc5 {[%clk 0:00:04.2]} 45. Ke3
{[%clk 0:00:20.8]} 45... Rb6 {[%clk 0:00:04]} 46. Qf8+ {[%clk 0:00:18.4]} 46...
Kb5 {[%clk 0:00:04.3]} 47. g3 {[%clk 0:00:18.6]} 47... a4 {[%clk 0:00:04.7]} 48.
h4 {[%clk 0:00:18.6]} 48... b3 {[%clk 0:00:05.1]} 49. axb3 {[%clk 0:00:18.8]}
49... axb3 {[%clk 0:00:05.5]} 50. Qa3 {[%clk 0:00:18.8]} 50... Kc4 {[%clk
0:00:05.6]} 51. Qb2 {[%clk 0:00:19.4]} 51... Kb4 {[%clk 0:00:05.3]} 52. h5
{[%clk 0:00:18.3]} 52... Rc6 {[%clk 0:00:05.6]} 53. h6 {[%clk 0:00:17.4]} 53...
Rc2 {[%clk 0:00:04.9]} 54. Qxc2 {[%clk 0:00:14.1]} 54... bxc2 {[%clk 0:00:05.8]}
55. Kd2 {[%clk 0:00:14.4]} 55... Kb3 {[%clk 0:00:05.9]} 56. Kc1 {[%clk
0:00:15.1]} 56... Kc3 {[%clk 0:00:05.2]} 57. h7 {[%clk 0:00:15.6]} 1-0

[Event "Late-Titled-Tuesday-Blitz-October-03-2023"]
[Site "Chess.com"]
[Date "2023.10.03"]
[Round "10"]
[White "Anton_Demchenko"]
[Black "carokannlover213"]
[Result "1-0"]
[WhiteElo "2910"]
[BlackElo "2717"]
[TimeControl "180+1"]
[EndTime "15:51:44 PDT"]
[Termination "Anton_Demchenko won by resignation"]

1. e4 {[%clk 0:02:51.1]} 1... e6 {[%clk 0:03:00.1]} 2. d3 {[%clk 0:02:45.5]}
2... c5 {[%clk 0:02:59.7]} 3. Nd2 {[%clk 0:02:41.8]} 3... Nc6 {[%clk 0:02:59.5]}
4. g3 {[%clk 0:02:41.8]} 4... g6 {[%clk 0:02:59.7]} 5. Bg2 {[%clk 0:02:42.5]}
5... Bg7 {[%clk 0:03:00]} 6. Ngf3 {[%clk 0:02:42.3]} 6... Nge7 {[%clk
0:02:59.6]} 7. O-O {[%clk 0:02:40.7]} 7... O-O {[%clk 0:03:00]} 8. Re1 {[%clk
0:02:40.3]} 8... d6 {[%clk 0:02:59.5]} 9. c3 {[%clk 0:02:38]} 9... e5 {[%clk
0:02:59.5]} 10. a3 {[%clk 0:02:38.1]} 10... a6 {[%clk 0:02:59.3]} 11. b4 {[%clk
0:02:38.4]} 11... h6 {[%clk 0:02:59.5]} 12. Rb1 {[%clk 0:02:31.9]} 12... b6
{[%clk 0:02:58.9]} 13. Nc4 {[%clk 0:01:57.3]} 13... Be6 {[%clk 0:02:58.3]} 14.
Ne3 {[%clk 0:01:47.5]} 14... f5 {[%clk 0:02:55.5]} 15. Nd2 {[%clk 0:01:34.2]}
15... f4 {[%clk 0:02:52.9]} 16. Nd5 {[%clk 0:01:33.9]} 16... Na7 {[%clk
0:02:28]} 17. bxc5 {[%clk 0:01:32.2]} 17... bxc5 {[%clk 0:02:26.4]} 18. a4
{[%clk 0:01:31.4]} 18... fxg3 {[%clk 0:02:18.9]} 19. hxg3 {[%clk 0:01:29.6]}
19... Nxd5 {[%clk 0:02:01.9]} 20. exd5 {[%clk 0:01:29.6]} 20... Bf5 {[%clk
0:02:02.4]} 21. Nc4 {[%clk 0:01:28.8]} 21... Qc7 {[%clk 0:01:57]} 22. Rb6 {[%clk
0:01:21.1]} 22... Nc8 {[%clk 0:01:51.8]} 23. Rc6 {[%clk 0:01:21.6]} 23... Qd8
{[%clk 0:01:48.1]} 24. Be4 {[%clk 0:01:11.8]} 24... Qf6 {[%clk 0:01:41.5]} 25.
Be3 {[%clk 0:01:03.5]} 25... Bd7 {[%clk 0:01:37]} 26. Rc7 {[%clk 0:01:01.2]}
26... Bf5 {[%clk 0:01:18.2]} 27. a5 {[%clk 0:00:55.5]} 27... Rf7 {[%clk
0:01:17.4]} 28. Rxf7 {[%clk 0:00:53.8]} 28... Qxf7 {[%clk 0:01:16.6]} 29. Qd2
{[%clk 0:00:50.9]} 29... Bxe4 {[%clk 0:01:00.1]} 30. dxe4 {[%clk 0:00:51.2]}
30... g5 {[%clk 0:00:56.4]} 31. Rb1 {[%clk 0:00:48.6]} 31... Qc7 {[%clk
0:00:42.1]} 32. Qe2 {[%clk 0:00:46]} 32... Rb8 {[%clk 0:00:36.7]} 33. Rxb8
{[%clk 0:00:46.3]} 33... Qxb8 {[%clk 0:00:37.6]} 34. Qg4 {[%clk 0:00:45.9]}
34... Qc7 {[%clk 0:00:18.8]} 35. Qe6+ {[%clk 0:00:43.9]} 35... Kh8 {[%clk
0:00:17.3]} 36. Qe8+ {[%clk 0:00:35.1]} 36... Kh7 {[%clk 0:00:16.8]} 37. Qc6
{[%clk 0:00:29.6]} 37... Qb8 {[%clk 0:00:05.6]} 38. Kg2 {[%clk 0:00:25.6]} 38...
Qb1 {[%clk 0:00:04.1]} 39. Nd2 {[%clk 0:00:22.7]} 39... Na7 {[%clk 0:00:02.6]}
40. Nxb1 {[%clk 0:00:21.2]} 40... Nxc6 {[%clk 0:00:02.4]} 41. dxc6 {[%clk
0:00:22.1]} 41... d5 {[%clk 0:00:02.7]} 42. c7 {[%clk 0:00:22.7]} 42... d4
{[%clk 0:00:02.7]} 43. Bd2 {[%clk 0:00:22.5]} 43... d3 {[%clk 0:00:02.8]} 44. c4
{[%clk 0:00:22.2]} 44... Bf6 {[%clk 0:00:03.7]} 45. c8=Q {[%clk 0:00:22.1]}
45... g4 {[%clk 0:00:04.3]} 46. Qxa6 {[%clk 0:00:22.6]} 46... h5 {[%clk
0:00:05]} 47. Qe6 {[%clk 0:00:23.4]} 47... h4 {[%clk 0:00:05.7]} 48. Qxg4 {[%clk
0:00:23.2]} 48... h3+ {[%clk 0:00:06.6]} 49. Qxh3+ {[%clk 0:00:23.5]} 49... Bh4
{[%clk 0:00:07.3]} 50. Qxh4+ {[%clk 0:00:23.7]} 50... Kg6 {[%clk 0:00:08.2]} 51.
Qg5+ {[%clk 0:00:24]} 51... Kf7 {[%clk 0:00:08.4]} 52. Qxe5 {[%clk 0:00:24.8]}
52... Kg6 {[%clk 0:00:09.3]} 53. Qxc5 {[%clk 0:00:25.2]} 53... Kg7 {[%clk
0:00:10.2]} 54. Qd4+ {[%clk 0:00:25.8]} 54... Kf7 {[%clk 0:00:11.1]} 55. Qxd3
{[%clk 0:00:26.5]} 55... Kg7 {[%clk 0:00:12]} 56. Kf3 {[%clk 0:00:27]} 56... Kf7
{[%clk 0:00:12.9]} 57. Ke2 {[%clk 0:00:27.6]} 57... Kg7 {[%clk 0:00:13.8]} 58.
f4 {[%clk 0:00:28.3]} 58... Kg6 {[%clk 0:00:14.7]} 59. g4 {[%clk 0:00:29.1]}
59... Kg7 {[%clk 0:00:15.6]} 60. Kf3 {[%clk 0:00:29.7]} 60... Kf7 {[%clk
0:00:15.3]} 61. Qd4 {[%clk 0:00:30.1]} 61... Kf8 {[%clk 0:00:15.3]} 62. a6
{[%clk 0:00:30.7]} 62... Kf7 {[%clk 0:00:16.2]} 63. a7 {[%clk 0:00:30.7]} 63...
Kf8 {[%clk 0:00:17.1]} 64. a8=Q+ {[%clk 0:00:29.4]} 64... Kf7 {[%clk 0:00:18]}
65. Qaa7+ {[%clk 0:00:29.3]} 65... Ke8 {[%clk 0:00:17.7]} 66. c5 {[%clk
0:00:29.6]} 66... Kf8 {[%clk 0:00:17.7]} 67. e5 {[%clk 0:00:30.2]} 67... Ke8
{[%clk 0:00:18.6]} 68. f5 {[%clk 0:00:30.1]} 68... Kf8 {[%clk 0:00:19.5]} 69. g5
{[%clk 0:00:30.7]} 69... Ke8 {[%clk 0:00:20.4]} 70. g6 {[%clk 0:00:31.3]} 70...
Kf8 {[%clk 0:00:21.3]} 71. f6 {[%clk 0:00:31.9]} 71... Ke8 {[%clk 0:00:22.2]}
72. e6 {[%clk 0:00:32.6]} 72... Kf8 {[%clk 0:00:23.1]} 73. c6 {[%clk 0:00:33.2]}
73... Ke8 {[%clk 0:00:24]} 1-0

[Event "Late-Titled-Tuesday-Blitz-October-03-2023"]
[Site "Chess.com"]
[Date "2023.10.03"]
[Round "10"]
[White "Sanyura"]
[Black "esskeettit"]
[Result "1-0"]
[WhiteElo "2645"]
[BlackElo "2460"]
[TimeControl "180+1"]
[EndTime "15:51:47 PDT"]
[Termination "Sanyura won by resignation"]

1. Nf3 {[%clk 0:02:00.4]} 1... d5 {[%clk 0:02:58.1]} 2. g3 {[%clk 0:02:01.3]}
2... Nf6 {[%clk 0:02:58.4]} 3. Bg2 {[%clk 0:02:00.6]} 3... e6 {[%clk 0:02:58.7]}
4. O-O {[%clk 0:02:01.5]} 4... Be7 {[%clk 0:02:59.2]} 5. d3 {[%clk 0:02:01.8]}
5... O-O {[%clk 0:02:59.8]} 6. Nbd2 {[%clk 0:02:01.8]} 6... b6 {[%clk
0:03:00.3]} 7. e4 {[%clk 0:02:02.7]} 7... Bb7 {[%clk 0:03:00]} 8. exd5 {[%clk
0:02:02.7]} 8... Bxd5 {[%clk 0:02:55.5]} 9. a4 {[%clk 0:02:02.1]} 9... a5 {[%clk
0:02:53.6]} 10. Re1 {[%clk 0:01:53.9]} 10... Na6 {[%clk 0:02:53.4]} 11. Qe2
{[%clk 0:01:29.8]} 11... Nb4 {[%clk 0:02:37.4]} 12. Ne4 {[%clk 0:01:28.7]} 12...
Nxe4 {[%clk 0:02:33.1]} 13. dxe4 {[%clk 0:01:29.6]} 13... Bb7 {[%clk 0:02:33.2]}
14. Rd1 {[%clk 0:00:46.1]} 14... Qc8 {[%clk 0:02:13.4]} 15. Ne1 {[%clk
0:00:43.1]} 15... Rd8 {[%clk 0:02:01.5]} 16. c3 {[%clk 0:00:39.4]} 16... Ba6
{[%clk 0:01:50]} 17. Qf3 {[%clk 0:00:25.6]} 17... Rxd1 {[%clk 0:01:13.4]} 18.
Qxd1 {[%clk 0:00:26.5]} 18... Qd8 {[%clk 0:01:13.6]} 19. Bf4 {[%clk 0:00:23.1]}
19... Nc6 {[%clk 0:00:50.9]} 20. Qxd8+ {[%clk 0:00:22.2]} 20... Rxd8 {[%clk
0:00:50.1]} 21. Bxc7 {[%clk 0:00:21.2]} 21... Rd2 {[%clk 0:00:45.8]} 22. Bxb6
{[%clk 0:00:18.4]} 22... Rxb2 {[%clk 0:00:45.7]} 23. Be3 {[%clk 0:00:17.6]}
23... Ne5 {[%clk 0:00:39]} 24. Rd1 {[%clk 0:00:15.3]} 24... h6 {[%clk
0:00:36.8]} 25. h3 {[%clk 0:00:13.9]} 25... Nc4 {[%clk 0:00:36.3]} 26. Bd4
{[%clk 0:00:11.2]} 26... Ra2 {[%clk 0:00:31.9]} 27. Bf1 {[%clk 0:00:06.4]} 27...
Rxa4 {[%clk 0:00:30.5]} 28. Rb1 {[%clk 0:00:07]} 28... Kh7 {[%clk 0:00:27.4]}
29. e5 {[%clk 0:00:06.5]} 29... Nd2 {[%clk 0:00:23.6]} 30. Bxa6 {[%clk
0:00:02.4]} 30... Nxb1 {[%clk 0:00:23.8]} 31. Bd3+ {[%clk 0:00:02.3]} 31... g6
{[%clk 0:00:23.3]} 32. Nf3 {[%clk 0:00:01.2]} 32... Ra1 {[%clk 0:00:08.6]} 33.
Kg2 {[%clk 0:00:02.1]} 33... Na3 {[%clk 0:00:08.5]} 34. h4 {[%clk 0:00:03]}
34... Rc1 {[%clk 0:00:08.4]} 35. h5 {[%clk 0:00:03.2]} 35... a4 {[%clk
0:00:07.8]} 36. hxg6+ {[%clk 0:00:03.7]} 36... fxg6 {[%clk 0:00:07.3]} 37. Be3
{[%clk 0:00:02.7]} 37... Rd1 {[%clk 0:00:06.3]} 38. Be2 {[%clk 0:00:02.2]} 38...
Rd8 {[%clk 0:00:06.2]} 39. Nd4 {[%clk 0:00:02.8]} 39... Nb1 {[%clk 0:00:05.2]}
40. Nxe6 {[%clk 0:00:03]} 40... Ra8 {[%clk 0:00:04.9]} 41. Bd3 {[%clk
0:00:03.6]} 41... Nxc3 {[%clk 0:00:04.1]} 42. Nf4 {[%clk 0:00:03.5]} 42... Nb5
{[%clk 0:00:04.2]} 43. Bxg6+ {[%clk 0:00:03.9]} 43... Kg7 {[%clk 0:00:03.4]} 44.
Bd3 {[%clk 0:00:04.6]} 44... Nc3 {[%clk 0:00:03.5]} 45. e6 {[%clk 0:00:05]}
45... a3 {[%clk 0:00:03.7]} 46. Bd4+ {[%clk 0:00:05.5]} 46... Kf8 {[%clk
0:00:04.2]} 47. Ng6+ {[%clk 0:00:05.5]} 47... Ke8 {[%clk 0:00:04]} 48. Bxc3
{[%clk 0:00:06.1]} 48... a2 {[%clk 0:00:03.6]} 49. Bb5+ {[%clk 0:00:06.7]} 49...
Kd8 {[%clk 0:00:03.9]} 50. Ba1 {[%clk 0:00:06.3]} 50... Bd6 {[%clk 0:00:03.8]}
51. e7+ {[%clk 0:00:06.3]} 51... Bxe7 {[%clk 0:00:03.8]} 52. Ne5 {[%clk
0:00:07]} 52... Rc8 {[%clk 0:00:03]} 53. Nc6+ {[%clk 0:00:06.6]} 53... Kc7
{[%clk 0:00:02.6]} 54. Nxe7 {[%clk 0:00:06.8]} 54... Re8 {[%clk 0:00:02.5]} 55.
Nd5+ {[%clk 0:00:07.1]} 55... Kd6 {[%clk 0:00:02.4]} 56. Bxe8 {[%clk 0:00:08]}
1-0

[Event "Late-Titled-Tuesday-Blitz-October-03-2023"]
[Site "Chess.com"]
[Date "2023.10.03"]
[Round "10"]
[White "miraitrunks"]
[Black "luizzy"]
[Result "0-1"]
[WhiteElo "2219"]
[BlackElo "2579"]
[TimeControl "180+1"]
[EndTime "15:51:50 PDT"]
[Termination "luizzy won on time"]

1. e4 {[%clk 0:02:56.5]} 1... e5 {[%clk 0:02:56.6]} 2. Nf3 {[%clk 0:02:56.1]}
2... d6 {[%clk 0:02:55.7]} 3. d4 {[%clk 0:02:55.5]} 3... Nd7 {[%clk 0:02:51.3]}
4. dxe5 {[%clk 0:02:54]} 4... Nxe5 {[%clk 0:02:47.5]} 5. Nxe5 {[%clk 0:02:53.9]}
5... dxe5 {[%clk 0:02:48.4]} 6. Qxd8+ {[%clk 0:02:54.3]} 6... Kxd8 {[%clk
0:02:49.3]} 7. Bc4 {[%clk 0:02:54.8]} 7... Ke8 {[%clk 0:02:47.2]} 8. O-O {[%clk
0:02:54.7]} 8... Nf6 {[%clk 0:02:44.6]} 9. Nc3 {[%clk 0:02:46]} 9... c6 {[%clk
0:02:45]} 10. Bg5 {[%clk 0:02:44.8]} 10... Be7 {[%clk 0:02:42.7]} 11. Rad1
{[%clk 0:02:44]} 11... h6 {[%clk 0:02:40.5]} 12. Bxf6 {[%clk 0:02:42]} 12...
Bxf6 {[%clk 0:02:40.5]} 13. Ne2 {[%clk 0:02:38.7]} 13... Ke7 {[%clk 0:02:27.4]}
14. f3 {[%clk 0:02:33.5]} 14... b5 {[%clk 0:02:23.4]} 15. Bb3 {[%clk 0:02:32.7]}
15... a5 {[%clk 0:02:24]} 16. a4 {[%clk 0:02:32.4]} 16... b4 {[%clk 0:02:17.9]}
17. Rfe1 {[%clk 0:02:30.4]} 17... Ba6 {[%clk 0:02:09.6]} 18. Ng3 {[%clk
0:02:27.7]} 18... g6 {[%clk 0:02:09.2]} 19. Kf2 {[%clk 0:02:05.6]} 19... h5
{[%clk 0:02:05]} 20. Ne2 {[%clk 0:02:01.4]} 20... Rhd8 {[%clk 0:02:02.1]} 21. g3
{[%clk 0:01:55.1]} 21... h4 {[%clk 0:01:49.4]} 22. Nc1 {[%clk 0:01:27.6]} 22...
Rh8 {[%clk 0:01:43.2]} 23. g4 {[%clk 0:01:24.8]} 23... h3 {[%clk 0:01:41.7]} 24.
Rg1 {[%clk 0:01:15.7]} 24... Bh4+ {[%clk 0:01:39.6]} 25. Ke3 {[%clk 0:01:15.5]}
25... Bg5+ {[%clk 0:01:39.5]} 26. Kf2 {[%clk 0:01:15]} 26... Bf4 {[%clk
0:01:05.7]} 27. Rh1 {[%clk 0:01:13.4]} 27... Rad8 {[%clk 0:01:02.6]} 28. Nd3
{[%clk 0:01:11.5]} 28... g5 {[%clk 0:00:51.3]} 29. Nc5 {[%clk 0:01:00.3]} 29...
Bc8 {[%clk 0:00:40.9]} 30. Ke2 {[%clk 0:00:51.8]} 30... Rxd1 {[%clk 0:00:39.1]}
31. Kxd1 {[%clk 0:00:49.1]} 31... Rd8+ {[%clk 0:00:38.1]} 32. Ke1 {[%clk
0:00:44.1]} 32... Rd2 {[%clk 0:00:34.4]} 33. Nd3 {[%clk 0:00:35.2]} 33... Rxh2
{[%clk 0:00:31.2]} 34. Rxh2 {[%clk 0:00:30.8]} 34... Bxh2 {[%clk 0:00:32.1]} 35.
Kf2 {[%clk 0:00:31.7]} 35... Ba6 {[%clk 0:00:26.2]} 36. Ba2 {[%clk 0:00:24.3]}
36... f6 {[%clk 0:00:19.2]} 37. Bb3 {[%clk 0:00:24.3]} 37... Kd6 {[%clk
0:00:19]} 38. Ba2 {[%clk 0:00:23.4]} 38... c5 {[%clk 0:00:15.5]} 39. Bf7 {[%clk
0:00:20.7]} 39... c4 {[%clk 0:00:15.2]} 40. Nc1 {[%clk 0:00:19]} 40... Kc5
{[%clk 0:00:15.4]} 41. c3 {[%clk 0:00:17]} 41... Bb7 {[%clk 0:00:14]} 42. Ne2
{[%clk 0:00:14.6]} 42... Bc6 {[%clk 0:00:12.9]} 43. Ng3 {[%clk 0:00:12.4]} 43...
Bxa4 {[%clk 0:00:11.4]} 44. Nh5 {[%clk 0:00:06.7]} 44... Bf4 {[%clk 0:00:07.7]}
45. Nxf6 {[%clk 0:00:04.6]} 45... Bd1 {[%clk 0:00:06.9]} 0-1